Workbook

Sheet Instructions and Summary
A1: Budget Justification
A2: Instructions and Summary
A3: Agency Name: | D3: Form submitted by/phone #:
A4: Program Activity Name: | D4: Date of Submission:
A7: Please read the instructions on each page (worksheet) before starting. If you have any questions, please ask Carol Stringer (carol.stringer@ky.gov). It will save you time!
A8: On this form, provide detailed support for the estimated project costs identified for each Category line item within each worksheet (budget items under different tabs). ● The total budget presented on this form must include both Grant, and Non-Grant (cost share/match funding) portions, thereby reflecting TOTAL PROJECT COSTS proposed. ● For costs in each Object Class Category below, complete the corresponding worksheet on this form (tab at the bottom of the page). ● All costs incurred by the preparer's sub-recipients, vendors, contractors and consultants, should be entered only in section f. Contractual. All other sections are for the costs of the preparer only.
A10: SUMMARY OF BUDGET CATEGORY COSTS PROPOSED (Note: The values in this summary table are from entries made in each budget category sheet.)
A11: CATEGORY | B11: Budget Period 1 Costs | C11: Budget Period 2 Costs | D11: Budget Period 3 Costs | E11: Total Costs | F11: Project Costs % | G11: Comments (Add comments as needed)
A12: a. Personnel | B12: ='a. Personnel'!F23 -> 0 | C12: ='a. Personnel'!J23 -> 0 | D12: ='a. Personnel'!N23 -> 0 | E12: =SUM(B12:D12) -> 0 | F12: =E12/$E$26 -> 
A13: b. Fringe Benefits | B13: ='b. Fringe'!D6 -> 0 | C13: ='b. Fringe'!E6 -> 0 | D13: ='b. Fringe'!F6 -> 0 | E13: =SUM(B13:D13) -> 0 | F13: =E13/$E$26 -> 
A14: c. Travel | B14: ='c. Travel'!F14 -> 0 | C14: ='c. Travel'!F27 -> 0 | D14: ='c. Travel'!F38 -> 0 | E14: 0 | F14: =E14/$E$26 -> 
A15: d. Equipment | B15: ='d. Equipment'!D13 -> 0 | C15: ='d. Equipment'!D20 -> 0 | D15: ='d. Equipment'!D29 -> 0 | E15: 0 | F15: =E15/$E$26 -> 
A16: e. Supplies | B16: ='e. Supplies'!D15 -> 0 | C16: ='e. Supplies'!D25 -> 0 | D16: ='e. Supplies'!D34 -> 0 | E16: 0 | F16: =E16/$E$26 -> 
A17: f. Contractual
A18: Sub-recipient | B18: ='f. Contractual'!C14 -> 0 | C18: ='f. Contractual'!D14 -> 0 | D18: ='f. Contractual'!E14 -> 0 | E18: =SUM(B18:D18) -> 0 | F18: =E18/$E$26 -> 
A19: Vendor | B19: ='f. Contractual'!C21 -> 0 | C19: ='f. Contractual'!D21 -> 0 | D19: ='f. Contractual'!E21 -> 0 | E19: 0
A20: Total Contractual | B20: =SUM(B18:B19) -> 0 | C20: =SUM(C18:C19) -> 0 | D20: =SUM(D18:D19) -> 0 | E20: 0
A21: g. Construction | B21: ='g. Construction'!B14 -> 0 | C21: ='g. Construction'!B19 -> 0 | D21: ='g. Construction'!B24 -> 0 | E21: 0
A22: h. Other Direct Costs | B22: ='h. Other'!B12 -> 0 | C22: ='h. Other'!B24 -> 0 | D22: ='h. Other'!B36 -> 0 | E22: =SUM(B22:D22) -> 0
A23: i. Indirect Charges | B23: ='i. Indirect'!D5 -> 0 | C23: ='i. Indirect'!E5 -> 0 | D23: ='i. Indirect'!F5 -> 0 | E23: =SUM(B23:D23) -> 0
A24: Project Costs | B24: =SUM(B12:B23)-B20 -> 0 | C24: =SUM(C12:C23)-C20 -> 0 | D24: =SUM(D12:D23)-D20 -> 0 | E24: =SUM(E12:E23)-E20 -> 0
A25: j. Cost Share/Match Funding | B25: ='j. Cost Share'!D13 -> 0 | C25: ='j. Cost Share'!E13 -> 0 | D25: ='j. Cost Share'!F13 -> 0 | E25: =SUM(B25:D25) -> 0
A26: Total Project Costs | B26: =B24+B25 -> 0 | C26: =C24+C25 -> 0 | D26: =D24+D25 -> 0 | E26: =E24+E25 -> 0
A28: Additional Explanations/Comments (as necessary)

Sheet a. Personnel
A1: Budget Justification
A2: a. Personnel
A3: PLEASE READ!!! List costs solely for employees of the entity completing this form (award recipient or sub-recipient). All other personnel costs (of subrecipients or other contractual efforts of the entity preparing this) must be included under f., Contractual. This includes all consultants. Identify positions to be supported. Key personnel should be identified by title. All other personnel should be identified either by title or a group category. State the amounts of time (e.g., hours or % of time) to be expended, the composite base pay rate, total direct personnel compensation and identify the rate basis (e.g., actual salary, labor distribution report, technical estimate, state civil service rates, etc.). Add rows as needed. Formulas/calculations will need to be entered by the preparer of this form. Please enter formulas as shown in the example.
A6: Position Title | C6: Budget Period 1 | G6: Budget Period 2 | K6: Budget Period 3 | O6: Project Total Dollars | P6: Rate Basis
C7: % of Time | D7: Salary ($/Yr) | E7: % of Year | F7: Total Budget Period 1 | G7: % of Time | H7: Salary ($/Yr) | I7: % of Year | J7: Total Budget Period 2 | K7: % of Time | L7: Salary ($/Yr) | M7: % of Year | N7: Total Budget Period 3
A8: EXAMPLE ONLY!!! Sr. Engineer | C8: 0.55 | D8: 76500 | E8: 0.5 | F8: =C8*D8*E8 -> 21037.5 | G8: 0.4 | H8: 76500 | I8: 0.5 | J8: =G8*H8*I8 -> 15300 | K8: 0.6 | L8: 76500 | M8: 0.75 | N8: =K8*L8*M8 -> 34425 | O8: =F8+J8+N8 -> 70762.5 | P8: Actual Salary
A9: EXAMPLE ONLY!!! Electrical engineers | C9: 0.35 | D9: 55500 | E9: 0.4 | F9: =C9*D9*E9 -> 7770 | G9: 0.4 | H9: 55500 | I9: 0.4 | J9: =G9*H9*I9 -> 8880 | K9: 0.3 | L9: 55500 | M9: 0.25 | N9: =K9*L9*M9 -> 4162.5 | O9: 20812.5 | P9: Actual Salary
A10: EXAMPLE ONLY!!! Technician | C10: 0.4 | D10: 100000 | E10: 1 | F10: =C10*D10*E10 -> 40000 | G10: 0.4 | H10: 100000 | I10: 1 | J10: =G10*H10*I10 -> 40000 | K10: 0.9 | L10: 100000 | M10: 0.5 | N10: =K10*L10*M10 -> 45000 | O10: 125000 | P10: Actual Salary
F11: =C11*D11*E11 -> 0 | J11: =G11*H11*I11 -> 0 | N11: =K11*L11*M11 -> 0 | O11: 0
F12: =C12*D12*E12 -> 0 | J12: =G12*H12*I12 -> 0 | N12: =K12*L12*M12 -> 0 | O12: 0
F13: 0 | J13: =G13*H13*I13 -> 0 | N13: =K13*L13*M13 -> 0 | O13: 0
F14: 0 | J14: 0 | N14: 0 | O14: 0
F15: 0 | J15: 0 | N15: 0 | O15: 0
F16: 0 | J16: 0 | N16: 0 | O16: 0
F17: 0 | J17: 0 | N17: 0 | O17: 0
F18: 0 | J18: 0 | N18: 0 | O18: 0
F19: 0 | J19: 0 | N19: 0 | O19: 0
F20: 0 | J20: 0 | N20: 0 | O20: 0
F21: 0 | J21: 0 | N21: 0 | O21: 0
F22: 0 | J22: 0 | N22: 0 | O22: 0
A23: Total Personnel Costs | F23: =SUM(F11:F22) -> 0 | J23: =SUM(J11:J22) -> 0 | N23: =SUM(N11:N22) -> 0 | O23: =N23+J23+F23 -> 0
A25: Additional Explanations/Comments (as necessary)

Sheet b. Fringe
A1: Budget Justification
A2: b. Fringe Benefits
D4: Budget Period 1 | E4: Budget Period 2 | F4: Budget Period 3 | G4: Total
A5: Rate applied: | D5: 0 | E5: 0 | F5: 0
A6: Total fringe requested: | D6: =D5*'a. Personnel'!F23 -> 0 | E6: =E5*'a. Personnel'!J23 -> 0 | F6: =F5*'a. Personnel'!N23 -> 0 | G6: =SUM(D6:F6) -> 0
A8: A federally approved fringe benefit rate agreement, or a proposed rate supported and agreed upon by the Ky Department for Energy Development and Independence for estimating purposes is required if reimbursement for fringe benefits is requested. Please check (X) one of the options below and provide the requested information.
B10: A fringe benefit rate has been negotiated with, or approved by, a federal government agency.
B13: There is not a current, federally approved rate agreement negotiated and available.
B14: (When this option is checked, the entity preparing this form shall submit a rate proposal in the additional explanation/commets section below.
A17: Additional explanation/comments (as necessary)

Sheet c. Travel
A1: Budget Justification
A2: c. Travel
A3: PLEASE READ!!! Provide travel detail as requested below. Purpose of travel are items such as professional conference, project management meeting, etc. The Basis for Estimating Costs are items such as past trips, current quotations, Federal/State Travel Regulations, etc. All listed travel must be necessary for performance of the Scope of Work. Add rows as needed. If rows are added, formulas/calculations may need to be adjusted by the preparer.
A5: Purpose of travel | B5: No. of Travelers | C5: Destination | D5: No. of Days | E5: Cost per Traveler | F5: Cost per Trip | G5: Basis for Estimating Costs
A6: Budget Period 1
A7: EXAMPLE ONLY!!! Visit to PV cell mfr. to set up vendor agreement | B7: 2 | C7: Washington, DC | D7: 2 | E7: 650 | F7: =E7*B7 -> 1300 | G7: Internet prices
F8: 0
F9: 0
F10: 0
F11: 0
F12: 0
F13: 0
A14: Budget Period 1 Total | F14: =SUM(F8:F13) -> 0
A15: Budget Period 2
F16: =E16*B16 -> 0
F17: 0
F18: 0
F19: 0
F20: 0
F21: 0
F22: 0
F23: 0
F24: 0
F25: 0
F26: 0
A27: Budget Period 2 Total | F27: =SUM(F16:F26) -> 0
A28: Budget Period 3
F29: =E29*B29 -> 0
F30: 0
F31: 0
F32: 0
F33: 0
F34: 0
F35: 0
F36: 0
F37: 0
A38: Budget Period 3 Total | F38: =SUM(F29:F37) -> 0
A39: PROJECT TOTAL | F39: =F14+F27+F38 -> 0
A41: Additional Explanations/Comments (as necessary)

Sheet d. Equipment
A1: Budget Justification
A2: d. Equipment
A3: PLEASE READ!!! Equipment is defined as an item with an acquisition cost greater than $5,000 and a useful life expectancy of more than one year. List all proposed equipment below, providing a basis of cost such as vendor quotes, catalog prices, prior invoices, etc., and briefly justifying its need as it applies to the project. Add rows as needed. If rows are added, formulas/calculations may need to be adjusted by the preparer.
A5: Equipment Item | B5: Qty | C5: Unit Cost | D5: Total Cost | E5: Basis of Cost | F5: Justification of need
A6: Budget Period 1
A7: EXAMPLE ONLY!!! Thermal shock chamber | B7: 2 | C7: 20000 | D7: =B7*C7 -> 40000 | E7: Vendor Quote | F7: Reliability testing of PV modules- Task 4.3
D8: 0
D9: 0
D10: 0
D11: 0
D12: 0
A13: Budget Period 1 Total | D13: =SUM(D8:D12) -> 0
A14: Budget Period 2
D15: =B15*C15 -> 0
D16: =B16*C16 -> 0
D17: =B17*C17 -> 0
D18: =B18*C18 -> 0
D19: =B19*C19 -> 0
A20: Budget Period 2 Total | D20: =SUM(D15:D19) -> 0
A21: Budget Period 3
D22: =B22*C22 -> 0
D23: =B23*C23 -> 0
D24: 0
D25: 0
D26: 0
D27: 0
D28: 0
A29: Budget Period 3 Total | D29: =SUM(D22:D28) -> 0
A30: PROJECT TOTAL | D30: =D13+D20+D29 -> 0
A32: Additional Explanations/Comments (as necessary)

Sheet e. Supplies
A1: Budget Justification
A2: e. Supplies
A3: PLEASE READ!!! Supplies are generally defined as an item with an acquisition cost of $5,000 or less and a useful life expectancy of less than one year. Supplies are generally consumed during the project performance. List all proposed supplies below, providing a basis of cost such as vendor quotes, catalog prices, prior invoices, etc., and briefly justifying the need for the supplies as they apply to the Scope of Work. Note that Supply items must be direct costs to the project at this budget category, and not duplicative of supply costs included in the indirect pool that is the basis of the indirect rate applied for this project. Office supplies such as paper, pencils, staplers, etc. are normally charged to the indirect pool. Add rows as needed. If rows are added, formulas/calculations may need to be adjusted by the preparer.
A5: General Category of Supplies | B5: Qty | C5: Unit Cost | D5: Total Cost | E5: Basis of Cost | F5: Justification of need
A6: Budget Period 1
A7: EXAMPLE ONLY!!! Wireless DAS components | B7: 10 | C7: 360 | D7: 3600 | E7: Catalog price | F7: For Alpha prototype - Task 2.4
D8: =B8*C8 -> 0
D9: =B9*C9 -> 0
D10: 0
D11: 0
D12: =B12*C12 -> 0
D13: 0
D14: 0
A15: Budget Period 1 Total | D15: =SUM(D8:D14) -> 0
A16: Budget Period 2
D17: =B17*C17 -> 0
D18: =B18*C18 -> 0
D19: =B19*C19 -> 0
D20: 0
D21: =B21*C21 -> 0
D22: =B22*C22 -> 0
D23: 0
D24: 0
A25: Budget Period 2 Total | D25: =SUM(D17:D24) -> 0
A26: Budget Period 3
D27: =B27*C27 -> 0
D28: 0
D29: 0
D30: 0
D31: 0
D32: 0
D33: 0
A34: Budget Period 3 Total | D34: =SUM(D27:D33) -> 0
A35: PROJECT TOTAL | D35: =D34+D25+D15 -> 0
A37: Additional Explanations/Comments (as necessary)

Sheet f. Contractual
A1: Budget Justification
A2: f. Contractual
A3: PLEASE READ!!! The entity completing this form must provide all costs related to sub-recipients, vendors, contractors and consultants in the applicable boxes below. Sub-recipients (partners, sub-awardees): The support to justify the budgets of sub-recipients may be in any format, and at a minimum should provide what task(s) are being performed, the purpose/need for the effort, and a basis of the estimated costs that is considered sufficient for the Department for Energy Development and Independence evaluation.
A4: Vendors (includes contractors and consultants): List all vendors, contractors and consultants supplying commercial supplies or services used to support the project. The support to justify vendor costs (in any amount) should provide the purpose for the products or services and a basis of the estimated costs that is considered sufficient for the Department for Energy Development and Independence evaluation. Add rows as needed. If rows are added, formulas/calculations may need to be adjusted by the preparer.
A7: Sub-Recipient Name/Organization | B7: Purpose/Tasks | C7: Budget Period 1 Costs | D7: Budget Period 2 Costs | E7: Budget Period 3 Costs | F7: Project Total
A8: EXAMPLE ONLY!!! Big State University (BSU) | B8: Setup and manage Energy Efficiency program for BSU. | C8: 48000 | D8: 32000 | E8: 16000 | F8: =SUM(C8:E8) -> 96000
F9: 0
F10: 0
F11: 0
F12: 0
F13: 0
B14: Sub-total | C14: =SUM(C9:C13) -> 0 | D14: =SUM(D9:D13) -> 0 | E14: =SUM(E9:E12) -> 0 | F14: =SUM(F9:F13) -> 0
A16: Vendor Name/Organization | B16: Product or Service, Purpose/Need and Basis of Cost (Provide additional support at bottom of page as needed) | C16: Budget Period 1 Costs | D16: Budget Period 2 Costs | E16: Budget Period 3 Costs | F16: Project Total
A17: EXAMPLE ONLY!!! ABC Corp. | B17: Contract with consultant for delivery of 5 one-day workshops for Energy Efficiency annually. | C17: 7500 | D17: 7500 | E17: 7500 | F17: =SUM(C17:E17) -> 22500
F18: =SUM(C18:E18) -> 0
F19: =SUM(C19:E19) -> 0
F20: =SUM(C20:E20) -> 0
C21: =SUM(C18:C20) -> 0 | D21: =SUM(D18:D20) -> 0 | E21: =SUM(E18:E20) -> 0 | F21: =SUM(F18:F20) -> 0
A24: Total Contractual | C24: =C21+C14 -> 0 | D24: =D21+D14 -> 0 | E24: =E21+E14 -> 0 | F24: =F21+F14 -> 0
A26: AdditionalExplanations/Comments (as necessary)

Sheet g. Construction
A1: Budget Justification
A2: g. Construction
A3: PLEASE READ!!! Construction, for the purpose of budgeting, is defined as all types of work done on a particular building, including erecting, altering, or remodeling. Construction conducted by the award recipient is entered on this page. Any construction work that is performed by a vendor or subrecipient to the award recipient should be entered under f. Contractual. List all proposed construction below, providing a basis of cost such as engineering estimates, prior construction, etc., and briefly justify its need as it applies to the Scope of Work. Add rows as needed. If rows are added, formulas/calculations may need to be adjusted by the preparer.
A5: Overall description of construction actiivities:
A6: Example Only!!! - Build wind turbine platform
A8: General Description | B8: Cost | C8: Basis of Cost | D8: Justification of need
A9: Budget Period 1
A10: Three days of excavation for platform site EXAMPLE ONLY!!! | B10: 28000 | C10: Engineering estimate | D10: Site must be prepared for construction of platform.
A14: Budget Period 1 Total | B14: =SUM(B11:B13) -> 0
A15: Budget Period 2
A19: Budget Period 2 Total | B19: =SUM(B16:B18) -> 0
A20: Budget Period 3
A24: Budget Period 3 Total | B24: =SUM(B21:B23) -> 0
A25: PROJECT TOTAL | B25: =B14+B19+B24 -> 0
A27: Additional Explanations/Comments (as necessary)

Sheet h. Other
A1: Budget Justification
A2: h. Other Direct Costs
A3: PLEASE READ!!! Other direct costs are direct cost items required for the project which do not fit clearly into other categories, and are not included in the indirect pool for which the indirect rate is being applied to this project. Examples are meeting costs, postage, couriers or express mail, telephone/fax costs, printing costs, etc. Basis of cost are items such as vendor quotes, prior purchases of similar or like items, published price list, etc. Add rows as needed. If rows are added, formulas/calculations may need to be adjusted by the preparer.
A5: General description | B5: Cost | C5: Basis of Cost | D5: Justification of need
A6: Budget Period 1
A7: EXAMPLE ONLY!!! Grad student tuition | B7: 16000 | C7: Established UCD costs | D7: Support of graduate students working on project
A12: Budget Period 1 Total | B12: =SUM(B8:B11) -> 0
A13: Budget Period 2
A24: Budget Period 2 Total | B24: =SUM(B14:B23) -> 0
A25: Budget Period 3
A36: Budget Period 3 Total | B36: =SUM(B26:B35) -> 0
A37: PROJECT TOTAL | B37: =B36+B24+B12 -> 0
A39: Additional Explanations/Comments (as necessary)

Sheet i. Indirect
A1: Budget Justification
A2: i. Indirect Costs
D3: Budget Period 1 | E3: Budget Period 2 | F3: Budget Period 3 | G3: Total
A4: Rate applied: | D4: 0 | E4: 0 | F4: 0
A5: Total indirect costs requested: | G5: =SUM(D5:F5) -> 0
A7: A federally approved indirect rate agreement, or rate proposed supported and agreed upon by the Ky Department for Energy Development and Independence for estimating purposes is required if reimbursement of indirect costs is requested. Please check (X) one of the options below and provide the requested information if it has not already been provided as requested, or has changed. The Ky Department for Energy Development and Indpendence may require the use of a rate lower than a federally approved rate.
B10: There is a federally approved indirect rate agreement. A copy will be retained in the award recipient's files and will be provided electronically to the Ky Department for Energy Development and Independence upon request.
B11: (When this option is selected, a presentation of the budget that demonstrates the application of the approved rate, to arrive at the proposed indirect charges proposed should also be provided.)
B12: There is no current, federally-approved indirect rate agreement.
B13: (When this option is checked, an indirect cost rate agreement may be negotiated with the Ky Department for Energy Development and Independence.)
A17: Additional Explanations/Comments (as necessary)

Sheet j. Cost Share (hidden)
A1: Budget Justification
A2: j. Cost Share/Match Funding
A3: PLEASE READ!!! A detailed presentation of the cash or cash value of all cost share/match funding proposed for the project must be provided in the table below. Identify the source & amount of each item of cost share/match funding proposed by the award recipient and each sub-recipient or vendor. Letters of committment must be submitted for all third party cost share/match funding (other than award recipient). Note that “cost-share/match funding" is not limited to cash investment. Other items that may be assigned value in a budget as incurred as part of the project budget and necessary to performance of the project, may be considered as cost share/match funding, such as: contribution of services or property; donated, purchased or existing equipment; buildings or land; donated, purchased or existing supplies; and/or unrecovered personnel, fringe benefits and indirect costs, etc. For each cost share/match funding contribution identified as other than cash, identify the item and describe how the value of the cost share/match funding contribution was calculated.
A4: Funds from other Federal sources MAY NOT be counted as cost share/match funding. Non-Federal sources include private, state or local Government, or any source not originally derived from Federal funds. Documentation of cost sharing/match funding commitments must be provided, if not already provided with the original application and they have not changed since its submission. Fee or profit will not be paid to the award recipients or subrecipients of awards. Additionally, foregone fee or profit by the applicant shall not be considered cost sharing/match funding under any resulting award. If applicable, reimbursement of actual costs will only include those costs that are allowable and allocable to the project as determined in accordance with the applicable cost principles prescribed in 10 CFR 600.127, 10 CFR 600.222 or 10 CFR 600.317. Also see 10 CFR 600.318 relative to profit or fee. Add rows as needed. If rows are added, formulas/calculations may need to be adjusted by the preparer.
A6: Organization/Source | B6: Type (cash or other) | C6: Cost Share/Match Funding Item | D6: Budget Period 1 Cost Share/ Match Funding | E6: Budget Period 2 Cost Share/ Match Funding | F6: Budget Period 3 Cost Share/ Match Funding | G6: Total Project Cost Share/ Match Funding
A7: ABC Company EXAMPLE ONLY!!! | B7: Cash | C7: Project partner ABC Company will provide 40 PV modules for product development at 50% off the of the retail price of $680 | D7: 13600 | G7: =SUM(D7:F7) -> 13600
G8: 0
G9: 0
G10: 0
G11: 0
G12: 0
C13: Totals | D13: =SUM(D8:D12) -> 0 | E13: =SUM(E7:E12) -> 0 | F13: =SUM(F7:F12) -> 0 | G13: =SUM(G8:G12) -> 0
A15: Total Project Cost: | C15: ='Instructions and Summary'!E26 -> 0 | D15: Cost Share/Match Funding Percent of Award: | G15: =G13/C15 -> 
A17: Additional Explanations/Comments (as necessary)

Sheet SF-424A (hidden)
A1: Applicant Name: | E1: Award Number:
A2: Budget Information - Non Construction Programs
A3: OMB Approval No. 0348-0044
A4: Section A - Budget Summary
B5: Grant Program Function or Activity | C5: Catalog of Federal Domestic Assistance Number | D5: Estimated Unobligated Funds | F5: New or Revised Budget
D6: Federal | E6: Non-Federal | F6: Federal | G6: Non-Federal | H6: Total
B7: (a) | C7: (b) | D7: (c ) | E7: (d) | F7: (e) | G7: (f) | H7: (g)
A8: 1. | B8: Budget period 1 | F8: =D26-G8 -> 0 | G8: ='j. Cost Share'!D13 -> 0 | H8: =SUM(D8:G8) -> 0
A9: 2. | B9: Budget period 2 | F9: =E26-G9 -> 0 | G9: ='j. Cost Share'!E13 -> 0 | H9: =SUM(D9:G9) -> 0
A10: 3. | B10: Budget period 3 | F10: =F26-'j. Cost Share'!F13 -> 0 | G10: ='j. Cost Share'!F13 -> 0 | H10: =SUM(D10:G10) -> 0
A11: 4. | H11: =SUM(D11:G11) -> 0
A12: 5. | B12: Totals | D12: =SUM(D8:D11) -> 0 | E12: =SUM(E8:E11) -> 0 | F12: =SUM(F8:F11) -> 0 | G12: =SUM(G8:G11) -> 0 | H12: =SUM(H8:H11) -> 0
A13: Section B - Budget Categories
A14: 6. | B14: Object Class Categories | D14: Grant Program, Function or Activity | H14: Total (5)
D15: Budget period 1 | E15: Budget period 2 | F15: Budget period 3 | G15: (4)
B16: a. Personnel | D16: ='Instructions and Summary'!B12 -> 0 | E16: ='Instructions and Summary'!C12 -> 0 | F16: ='Instructions and Summary'!D12 -> 0 | H16: =SUM(D16:G16) -> 0
B17: b. Fringe Benefits | D17: ='Instructions and Summary'!B13 -> 0 | E17: ='Instructions and Summary'!C13 -> 0 | F17: ='Instructions and Summary'!D13 -> 0 | H17: 0
B18: c. Travel | D18: ='Instructions and Summary'!B14 -> 0 | E18: ='Instructions and Summary'!C14 -> 0 | F18: ='Instructions and Summary'!D14 -> 0 | H18: 0
B19: d. Equipment | D19: ='Instructions and Summary'!B15 -> 0 | E19: ='Instructions and Summary'!C15 -> 0 | F19: ='Instructions and Summary'!D15 -> 0 | H19: 0
B20: e. Supplies | D20: ='Instructions and Summary'!B16 -> 0 | E20: ='Instructions and Summary'!C16 -> 0 | F20: ='Instructions and Summary'!D16 -> 0 | H20: 0
B21: f. Contractual | D21: ='Instructions and Summary'!B20 -> 0 | E21: ='Instructions and Summary'!C20 -> 0 | F21: ='Instructions and Summary'!D20 -> 0 | H21: 0
B22: g. Construction | D22: ='Instructions and Summary'!B21 -> 0 | E22: ='Instructions and Summary'!C21 -> 0 | F22: ='Instructions and Summary'!D21 -> 0 | H22: 0
B23: h. Other | D23: ='Instructions and Summary'!B22 -> 0 | E23: ='Instructions and Summary'!C22 -> 0 | F23: ='Instructions and Summary'!D22 -> 0 | H23: 0
B24: i. Total Direct Charges (sum of 6a-6h) | D24: =SUM(D16:D23) -> 0 | E24: =SUM(E16:E23) -> 0 | F24: =SUM(F16:F23) -> 0 | G24: =SUM(G16:G23) -> 0 | H24: 0
B25: j. Indirect Charges | D25: ='Instructions and Summary'!B23 -> 0 | E25: ='Instructions and Summary'!C23 -> 0 | F25: ='Instructions and Summary'!D23 -> 0 | H25: 0
B26: k. Totals (sum of 6i-6j) | D26: =SUM(D24:D25) -> 0 | E26: =SUM(E24:E25) -> 0 | F26: =SUM(F24:F25) -> 0 | G26: =SUM(G24:G25) -> 0 | H26: =SUM(H24:H25) -> 0
A28: 7. | B28: Program Income | H28: =SUM(D28:G28) -> 0
H30: SF-424A (Rev. 4-92)
A31: Previous Edition Usable | G31: Prescribed by OMB Circular A-102
A32: Authorized for Local Reproduction
A34: Section C - Non-Federal Resources
B35: (a) Grant Program | E35: (b) Applicant | F35: (c ) State | G35: (d) Other Sources | H35: (e) Totals
A36: 8. | B36: Budget period 1 | H36: =SUM(E36:G36) -> 0
A37: 9. | B37: Budget period 2 | H37: =SUM(E37:G37) -> 0
A38: 10. | B38: Budget period 3 | H38: =SUM(E38:G38) -> 0
A39: 11. | H39: =SUM(E39:G39) -> 0
A40: 12. | B40: Total (sum of lines 8 - 11) | E40: =SUM(E36:E39) -> 0 | F40: =SUM(F36:F39) -> 0 | G40: =SUM(G36:G39) -> 0 | H40: =SUM(H36:H39) -> 0
A41: Section D - Forecasted Cash Needs
D42: Total for 1st Year | E42: 1st Quarter | F42: 2nd Quarter | G42: 3rd Quarter | H42: 4th quarter
A43: 13. | B43: Federal | D43: =SUM(E43:H43) -> 0
A44: 14. | B44: Non-Federal | D44: =SUM(E44:H44) -> 0
A45: 15. | B45: Total (sum of lines 13 and 14) | D45: =SUM(D43:D44) -> 0 | E45: =SUM(E43:E44) -> 0 | F45: =SUM(F43:F44) -> 0 | G45: =SUM(G43:G44) -> 0 | H45: =SUM(H43:H44) -> 0
A46: Section E - Budget Estimates of Federal Funds Needed for Balance of the Project
A47: (a) Grant Program | E47: Future Funding Periods (Years)
E48: Budget period 1 | F48: Budget period 2 | G48: Budget period 3
A49: 16.
A50: 17.
A51: 18.
A52: 19.
A53: 20. | B53: Total (sum of lines 16-19) | E53: =SUM(E49:E52) -> 0 | F53: =SUM(F49:F52) -> 0 | G53: =SUM(G49:G52) -> 0 | H53: =SUM(H49:H52) -> 0
A54: Section F - Other Budget Information
A55: 21. Direct Charges | E55: 22. Indirect Charges
A57: 23. Remarks
H61: SF-424A (Rev. 4-92)
A62: Previous Edition Usable | H62: Prescribed by OMB Circular A-102
C63: Authorized for Local Reproduction
